fUSD/lending_fUSD_20260421
["ID","MTS","AMOUNT","RATE_DAILY","PERIOD"]
[420930123,1776736284932,-500.0,0.00027671,2]
[420930124,1776736284941,-636.26,0.00027671,2]
[420930125,1776736284950,-227.40894722,0.00027671,2]
[420930126,1776736284960,-500.0,0.00027671,2]
[420930127,1776736284969,-500.0,0.00027671,2]
[420930128,1776736284979,-5525.02,0.00027671,2]
[420930129,1776736284988,-500.0,0.00027671,2]
[420930130,1776736284998,-541.12,0.00027671,2]
[420930131,1776736285007,-3876.89,0.00027671,2]
[420930132,1776736285016,-1451.34,0.00027671,2]
[420930133,1776736285025,-500.0,0.00027671,2]
[420930134,1776736285035,-8265.57,0.00027671,2]
[420930135,1776736285044,-10199.47,0.00027671,2]
[420930136,1776736285054,-500.0,0.00027671,2]
[420930137,1776736285063,-1003.82,0.00027671,2]
[420930138,1776736285072,-2972.74,0.00027671,2]
[420930139,1776736285082,-500.0,0.00027671,2]
[420930140,1776736285092,-2191.66,0.00027671,2]
[420930141,1776736285101,-500.0,0.00027671,2]
[420930142,1776736285110,-1453.31,0.00027671,2]
[420930143,1776736285119,-500.0,0.00027671,2]
[420930144,1776736285129,-1633.86,0.00027671,2]
[420930145,1776736285138,-1172.2,0.00027671,2]
[420930146,1776736285148,-1630.59,0.00027671,2]
[420930147,1776736285157,-544.39,0.00027671,2]
[420930148,1776736285166,-500.0,0.00027671,2]
[420930149,1776736285175,-1078.92,0.00027671,2]
[420930150,1776736285184,-562.21,0.00027671,2]
[420930151,1776736285194,-500.0,0.00027671,2]
[420930152,1776736285203,-1184.56,0.00027671,2]
[420930153,1776736285213,-500.0,0.00027671,2]
[420930154,1776736285223,-500.0,0.00027671,2]
[420930155,1776736285232,-2012.32,0.00027671,2]
[420930156,1776736285242,-2379.02,0.00027671,2]
[420930157,1776736285251,-1478.18,0.00027671,2]
[420930158,1776736285261,-3416.97,0.00027671,2]
[420930159,1776736285272,-1827.92,0.00027671,2]
[420930160,1776736285282,-500.0,0.00027671,2]
[420930161,1776736285291,-500.0,0.00027671,2]
[420930162,1776736285301,-2706.32,0.00027671,2]
[420930163,1776736285311,-950.28,0.00027671,2]
[420930164,1776736285320,-500.0,0.00027671,2]
[420930165,1776736285330,-546.35,0.00027671,2]
[420930166,1776736285340,-500.0,0.00027671,2]
[420930167,1776736285350,-690.02,0.00027671,2]
[420930168,1776736285360,-2746.6,0.00027671,2]
[420930169,1776736285369,-500.0,0.00027671,2]
[420930170,1776736285379,-4850.19,0.00027671,2]
[420930171,1776736285388,-1394.87,0.00027671,2]
[420930172,1776736285398,-1339.36,0.00027671,2]
[420930173,1776736285407,-500.0,0.00027671,2]
[420930174,1776736285417,-500.0,0.00027671,2]
[420930175,1776736285426,-2429.91,0.00027671,2]
[420930176,1776736285436,-500.0,0.00027671,2]
[420930177,1776736285445,-500.0,0.00027671,2]
[420930178,1776736285455,-500.0,0.00027671,2]
[420930179,1776736285464,-1076.61,0.00027671,2]
[420930180,1776736285473,-519.35,0.00027671,2]
[420930181,1776736285483,-500.0,0.00027671,2]
[420930182,1776736285493,-500.0,0.00027671,2]
[420930183,1776736285502,-500.0,0.00027671,2]
[420930184,1776736285512,-18935.63,0.00027671,2]
[420930185,1776736285521,-500.0,0.00027671,2]
[420930186,1776736285531,-1473.16,0.00027671,2]
[420930187,1776736285540,-2694.86,0.00027671,2]
[420930188,1776736285550,-500.0,0.00027671,2]
[420930189,1776736285559,-500.0,0.00027671,2]
[420930190,1776736285569,-1716.86,0.00027671,2]
[420930191,1776736285578,-2266.24,0.00027671,2]
[420930192,1776736285588,-500.0,0.00027671,2]
[420930193,1776736285598,-2472.95,0.00027671,2]
[420930194,1776736285607,-1834.84,0.00027671,2]
[420930195,1776736285617,-2474.81,0.00027671,2]
[420930196,1776736285627,-500.0,0.00027671,2]
[420930197,1776736285636,-500.0,0.00027671,2]
[420930198,1776736285646,-500.0,0.00027671,2]
[420930199,1776736285655,-1038.2,0.00027671,2]
[420930200,1776736285664,-500.0,0.00027671,2]
[420930201,1776736285674,-1756.87,0.00027671,2]
[420930202,1776736285684,-1302.68,0.00027671,2]
[420930203,1776736285693,-500.0,0.00027671,2]
[420930204,1776736285703,-500.0,0.00027671,2]
[420930205,1776736285712,-500.0,0.00027671,2]
[420930206,1776736285722,-500.0,0.00027671,2]
[420930207,1776736285732,-3306.25,0.00027671,2]
[420930208,1776736285741,-879.22,0.00027671,2]
[420930209,1776736285751,-500.0,0.00027671,2]
[420930210,1776736285760,-2670.85,0.00027671,2]
[420930211,1776736285769,-500.0,0.00027671,2]
[420930212,1776736285779,-6286.88,0.00027671,2]
[420930213,1776736285788,-5920.11,0.00027671,2]
[420930214,1776736285798,-500.0,0.00027671,2]
[420930215,1776736285807,-500.0,0.00027671,2]
[420930216,1776736285817,-1850.42,0.00027671,2]
[420930217,1776736285827,-500.0,0.00027671,2]
[420930218,1776736285837,-1180.28,0.00027671,2]
[420930219,1776736285846,-680.89,0.00027671,2]
[420930220,1776736285855,-573.9,0.00027671,2]
[420930221,1776736285865,-500.0,0.00027671,2]
[420930222,1776736285874,-1515.4,0.00027671,2]
[420930223,1776736285884,-766.8,0.00027671,2]
[420930224,1776736285894,-3002.0,0.00027671,2]
[420930225,1776736285903,-500.0,0.00027671,2]
[420930226,1776736285912,-500.0,0.00027671,2]
[420930227,1776736285922,-500.0,0.00027671,2]
[420930228,1776736285931,-2708.38,0.00027671,2]
[420930229,1776736285940,-3212.56,0.00027671,2]
[420930230,1776736285950,-500.0,0.00027671,2]
[420930231,1776736285960,-500.0,0.00027671,2]
[420930232,1776736285969,-2902.71,0.00027671,2]
[420930233,1776736285978,-855.61,0.00027671,2]
[420930234,1776736285988,-887.87,0.00027671,2]
[420930235,1776736285998,-516.62,0.00027671,2]
[420930236,1776736286007,-911.68,0.00027671,2]
[420930237,1776736286018,-500.0,0.00027671,2]
[420930238,1776736286027,-500.0,0.00027671,2]
[420930239,1776736286037,-1780.01,0.00027671,2]
[420930240,1776736286046,-4332.59,0.00027671,2]
[420930241,1776736286056,-693.22,0.00027671,2]
[420930242,1776736286066,-500.0,0.00027671,2]
[420930243,1776736286075,-527.52,0.00027671,2]
[420930244,1776736286085,-500.0,0.00027671,2]
[420930245,1776736286095,-500.0,0.00027671,2]
[420930246,1776736286104,-500.0,0.00027671,2]
[420930247,1776736286114,-1151.65,0.00027671,2]
[420930248,1776736286124,-500.0,0.00027671,2]
[420930249,1776736286133,-1876.22,0.00027671,2]
[420930250,1776736286143,-2511.19,0.00027671,2]
[420930251,1776736286152,-2079.95,0.00027671,2]
[420930252,1776736286162,-500.0,0.00027671,2]
[420930253,1776736286171,-500.0,0.00027671,2]
[420930254,1776736286180,-1955.49,0.00027671,2]
[420930255,1776736286190,-2570.56,0.00027671,2]
[420930256,1776736286199,-2585.06,0.00027671,2]
[420930257,1776736286209,-500.0,0.00027671,2]
[420930258,1776736286218,-1435.76,0.00027671,2]
[420930259,1776736286227,-500.0,0.00027671,2]
[420930260,1776736286236,-7569.8,0.00027671,2]
[420930261,1776736286246,-1511.21,0.00027671,2]
[420930262,1776736286255,-500.0,0.00027671,2]
[420930263,1776736286264,-500.0,0.00027671,2]
[420930264,1776736286274,-500.0,0.00027671,2]
[420930265,1776736286284,-1270.12,0.00027671,2]
[420930266,1776736286294,-945.5,0.00027671,2]
[420930267,1776736286303,-2358.74,0.00027671,2]
[420930268,1776736286313,-558.61,0.00027671,2]
[420930269,1776736286323,-500.0,0.00027671,2]
[420930270,1776736286332,-500.0,0.00027671,2]
[420930271,1776736286342,-500.0,0.00027671,2]
[420930272,1776736286352,-389.37001455,0.00027671,2]
[420930273,1776736286361,-5267.2,0.00027671,2]
[420930274,1776736286370,-938.35,0.00027671,2]
[420930275,1776736286380,-984.49,0.00027671,2]
[420930276,1776736286389,-500.0,0.00027671,2]
[420930277,1776736286399,-500.0,0.00027671,2]
[420930278,1776736286408,-500.0,0.00027671,2]
[420930279,1776736286417,-710.55,0.00027671,2]
[420930280,1776736286427,-1224.07,0.00027671,2]
[420930281,1776736286436,-2204.5,0.00027671,2]
[420930282,1776736286446,-1362.13,0.00027671,2]
[420930283,1776736286455,-1976.08,0.00027671,2]
[420930284,1776736286465,-500.0,0.00027671,2]
[420930285,1776736286475,-505.96366193,0.00027671,2]
[420930286,1776736286484,-500.0,0.00027671,2]
[420930287,1776736286494,-500.0,0.00027671,2]
[420930288,1776736286504,-1410.2,0.00027671,2]
[420930289,1776736286513,-11016.08,0.00027671,2]
[420930290,1776736286523,-641.11,0.00027671,2]
[420930291,1776736286532,-1077.11,0.00027671,2]
[420930292,1776736286542,-500.0,0.00027671,2]
[420930293,1776736286551,-1158.2,0.00027671,2]
[420930294,1776736286560,-500.0,0.00027671,2]
[420930295,1776736286569,-1217.89,0.00027671,2]
[420930296,1776736286578,-500.0,0.00027671,2]
[420930297,1776736286587,-500.0,0.00027671,2]
[420930298,1776736286597,-578.3,0.00027671,2]
[420930299,1776736286606,-2368.13,0.00027671,2]
[420930300,1776736286615,-500.0,0.00027671,2]
[420930301,1776736286625,-4677.85,0.00027671,2]
[420930302,1776736286634,-500.0,0.00027671,2]
[420930303,1776736286644,-500.0,0.00027671,2]
[420930304,1776736286654,-1823.24,0.00027671,2]
[420930305,1776736286663,-500.0,0.00027671,2]
[420930306,1776736286673,-500.0,0.00027671,2]
[420930307,1776736286682,-500.0,0.00027671,2]
[420930308,1776736286692,-3336.74,0.00027671,2]
[420930309,1776736286702,-500.0,0.00027671,2]
[420930310,1776736286712,-500.0,0.00027671,2]
[420930311,1776736286721,-500.0,0.00027671,2]
[420930312,1776736286731,-500.0,0.00027671,2]
[420930313,1776736286740,-3532.37,0.00027671,2]
[420930314,1776736286749,-2442.37,0.00027671,2]
[420930315,1776736286759,-631.18,0.00027671,2]
[420930316,1776736286770,-1820.84,0.00027671,2]
[420930317,1776736286780,-1829.46,0.00027671,2]
[420930318,1776736286789,-891.82,0.00027671,2]
[420930319,1776736286799,-569.93,0.00027671,2]
[420930320,1776736286809,-5453.11,0.00027671,2]
[420930321,1776736286819,-1786.32,0.00027671,2]
[420930322,1776736286829,-543.92,0.00027671,2]
[420930323,1776736286839,-1532.77,0.00027671,2]
[420930324,1776736286849,-561.8574414,0.00027671,2]
[420930325,1776736286859,-3439.59,0.00027671,2]
[420930326,1776736286869,-1248.62,0.00027671,2]
[420930327,1776736286878,-500.0,0.00027671,2]
[420930328,1776736286887,-2124.81,0.00027671,2]
[420930329,1776736286897,-769.32,0.00027671,2]
[420930330,1776736286907,-500.0,0.00027671,2]
[420930331,1776736286916,-500.0,0.00027671,2]
[420930332,1776736286926,-500.0,0.00027671,2]
[420930333,1776736286936,-1841.01,0.00027671,2]
[420930334,1776736286946,-2025.14,0.00027671,2]
[420930335,1776736286956,-1051.32,0.00027671,2]
[420930336,1776736286966,-500.0,0.00027671,2]
[420930337,1776736286975,-2205.86,0.00027671,2]
[420930338,1776736286984,-886.22,0.00027671,2]
[420930339,1776736286994,-1231.34,0.00027671,2]
[420930340,1776736287003,-2711.73,0.00027671,2]
[420930341,1776736287012,-671.18,0.00027671,2]
[420930342,1776736287022,-4581.86,0.00027671,2]
[420930343,1776736287032,-500.0,0.00027671,2]
[420930344,1776736287042,-500.0,0.00027671,2]
[420930345,1776736287051,-500.0,0.00027671,2]
[420930346,1776736287061,-1134.05,0.00027671,2]
[420930347,1776736287070,-500.0,0.00027671,2]
[420930348,1776736287080,-1439.19,0.00027671,2]
[420930349,1776736287090,-500.0,0.00027671,2]
[420930350,1776736287099,-1991.99,0.00027671,2]
[420930351,1776736287109,-590.32,0.00027671,2]
[420930352,1776736287118,-940.65,0.00027671,2]
[420930353,1776736287128,-500.0,0.00027671,2]
[420930354,1776736287137,-500.0,0.00027671,2]
[420930355,1776736287146,-500.19,0.00027671,2]
[420930356,1776736287156,-500.0,0.00027671,2]
[420930357,1776736287165,-970.72,0.00027671,2]
[420930358,1776736287174,-1403.31,0.00027671,2]
[420930359,1776736287183,-2026.36,0.00027671,2]
[420930360,1776736287193,-2766.31,0.00027671,2]
[420930361,1776736287202,-500.0,0.00027671,2]
[420930362,1776736287211,-500.0,0.00027671,2]
[420930363,1776736287221,-752.73,0.00027671,2]
[420930364,1776736287230,-500.0,0.00027671,2]
[420930365,1776736287239,-500.0,0.00027671,2]
[420930366,1776736287249,-500.0,0.00027671,2]
[420930367,1776736287258,-500.0,0.00027671,2]
[420930368,1776736287267,-1621.94,0.00027671,2]
[420930369,1776736287277,-1523.82,0.00027671,2]
[420930370,1776736287286,-510.1,0.00027671,2]
[420930371,1776736287295,-987.77,0.00027671,2]
[420930372,1776736287304,-3034.72,0.00027671,2]
[420930373,1776736287313,-500.0,0.00027671,2]
[420930374,1776736287322,-612.9,0.00027671,2]
[420930375,1776736287332,-1590.14,0.00027671,2]
[420930376,1776736287341,-500.0,0.00027671,2]
[420930377,1776736287350,-660.38,0.00027671,2]
[420930378,1776736287359,-500.0,0.00027671,2]
[420930379,1776736287368,-525.34,0.00027671,2]
[420930380,1776736287378,-500.0,0.00027671,2]
[420930381,1776736287387,-2025.83,0.00027671,2]
[420930382,1776736287396,-1084.52,0.00027671,2]
[420930383,1776736287406,-500.0,0.00027671,2]
[420930384,1776736287415,-714.94,0.00027671,2]
[420930385,1776736287424,-1013.54,0.00027671,2]
[420930386,1776736287433,-500.0,0.00027671,2]
[420930387,1776736287444,-500.0,0.00027671,2]
[420930388,1776736287453,-500.0,0.00027671,2]
[420930389,1776736287463,-1788.49,0.00027671,2]
[420930390,1776736287473,-500.0,0.00027671,2]
[420930391,1776736287482,-720.54,0.00027671,2]
[420930392,1776736287492,-500.0,0.00027671,2]
[420930393,1776736287502,-2534.61,0.00027671,2]
[420930394,1776736287511,-500.0,0.00027671,2]
[420930395,1776736287521,-500.0,0.00027671,2]
[420930396,1776736287531,-3779.61,0.00027671,2]
[420930397,1776736287540,-1716.54,0.00027671,2]
[420930398,1776736287549,-500.0,0.00027671,2]
[420930399,1776736287559,-500.0,0.00027671,2]
[420930400,1776736287568,-2598.96,0.00027671,2]
[420930401,1776736287578,-500.0,0.00027671,2]
[420930402,1776736287587,-3173.15,0.00027671,2]
[420930403,1776736287596,-500.0,0.00027671,2]
[420930404,1776736287606,-500.0,0.00027671,2]
[420930405,1776736287615,-500.0,0.00027671,2]
[420930406,1776736287624,-500.0,0.00027671,2]
[420930407,1776736287634,-500.0,0.00027671,2]
[420930408,1776736287643,-1002.56,0.00027671,2]
[420930409,1776736287652,-393.70478906,0.00027671,2]
[420930410,1776736287662,-915.0,0.00027671,2]
[420930411,1776736287672,-500.0,0.00027671,2]
[420930412,1776736287681,-934.99,0.00027671,2]
[420930413,1776736287691,-500.0,0.00027671,2]
[420930414,1776736287700,-500.0,0.00027671,2]
[420930415,1776736287710,-1138.55,0.00027671,2]
[420930416,1776736287720,-500.0,0.00027671,2]
[420930417,1776736287730,-500.0,0.00027671,2]
[420930418,1776736287740,-1186.49,0.00027671,2]
[420930419,1776736287749,-738.07,0.00027671,2]
[420930420,1776736287759,-500.0,0.00027671,2]
[420930421,1776736287768,-500.0,0.00027671,2]
[420930422,1776736287777,-789.58,0.00027671,2]
[420930423,1776736287786,-500.0,0.00027671,2]
[420930424,1776736287795,-1085.18,0.00027671,2]
[420930425,1776736287804,-6917.0,0.00027671,2]
[420930426,1776736287814,-500.0,0.00027671,2]
[420930427,1776736287823,-500.0,0.00027671,2]
[420930428,1776736287833,-500.0,0.00027671,2]
[420930429,1776736287842,-500.0,0.00027671,2]
[420930430,1776736287851,-690.75,0.00027671,2]
[420930431,1776736287860,-2681.96,0.00027671,2]
[420930432,1776736287870,-500.0,0.00027671,2]
[420930433,1776736287879,-500.0,0.00027671,2]
[420930434,1776736287888,-3641.58,0.00027671,2]
[420930435,1776736287897,-500.0,0.00027671,2]
[420930436,1776736287907,-500.0,0.00027671,2]
[420930437,1776736287916,-500.0,0.00027671,2]
[420930438,1776736287925,-500.0,0.00027671,2]
[420930439,1776736287935,-529.07,0.00027671,2]
[420930440,1776736287944,-620.53,0.00027671,2]
[420930441,1776736287954,-500.0,0.00027671,2]
[420930442,1776736287963,-993.09,0.00027671,2]
[420930443,1776736287972,-544.44,0.00027671,2]
[420930444,1776736287982,-500.0,0.00027671,2]
[420930445,1776736287991,-545.89282022,0.00027671,2]
[420930446,1776736288000,-500.0,0.00027671,2]
[420930447,1776736288010,-500.0,0.00027671,2]
[420930448,1776736288019,-1143.51,0.00027671,2]
[420930449,1776736288029,-500.0,0.00027671,2]
[420930450,1776736288038,-601.67,0.00027671,2]
[420930451,1776736288047,-500.0,0.00027671,2]
[420930452,1776736288056,-1089.51,0.00027671,2]
[420930453,1776736288066,-3202.82,0.00027671,2]
[420930454,1776736288075,-500.0,0.00027671,2]
[420930455,1776736288084,-643.84,0.00027671,2]
[420930456,1776736288093,-500.0,0.00027671,2]
[420930457,1776736288103,-500.0,0.00027671,2]
[420930458,1776736288112,-500.0,0.00027671,2]
[420930459,1776736288120,-500.0,0.00027671,2]
[420930460,1776736288130,-525.3815263,0.00027671,2]
[420930461,1776736288139,-959.25,0.00027671,2]
[420930462,1776736288148,-1242.31,0.00027671,2]
[420930463,1776736288157,-500.0,0.00027671,2]
[420930464,1776736288166,-500.0,0.00027671,2]
[420930465,1776736288175,-500.0,0.00027671,2]
[420930466,1776736288185,-1215.42,0.00027671,2]
[420930467,1776736288195,-692.48,0.00027671,2]
[420930468,1776736288204,-500.0,0.00027671,2]
[420930469,1776736288213,-500.0,0.00027671,2]
[420930470,1776736288222,-500.0,0.00027671,2]
[420930471,1776736288231,-1067.48,0.00027671,2]
[420930472,1776736288240,-500.0,0.00027671,2]
[420930473,1776736288250,-500.0,0.00027671,2]
[420930474,1776736288259,-500.0,0.00027671,2]
[420930475,1776736288268,-1495.19,0.00027671,2]
[420930476,1776736288277,-500.0,0.00027671,2]
[420930477,1776736288287,-4858.54,0.00027671,2]
[420930478,1776736288296,-1780.29,0.00027671,2]
[420930479,1776736288305,-500.0,0.00027671,2]
[420930480,1776736288314,-500.0,0.00027671,2]
[420930481,1776736288323,-394.40877685,0.00027671,2]
[420930482,1776736288332,-624.02,0.00027671,2]
[420930483,1776736288342,-1560.91,0.00027671,2]
[420930484,1776736288351,-2289.74,0.00027671,2]
[420930485,1776736288360,-500.0,0.00027671,2]
[420930486,1776736288369,-1213.98,0.00027671,2]
[420930487,1776736288377,-641.65,0.00027671,2]
[420930488,1776736288386,-500.0,0.00027671,2]
[420930489,1776736288395,-2487.58,0.00027671,2]
[420930490,1776736288404,-1177.56,0.00027671,2]
[420930491,1776736288413,-500.0,0.00027671,2]
[420930492,1776736288423,-500.0,0.00027671,2]
[420930493,1776736288432,-1791.47,0.00027671,2]
[420930494,1776736288441,-1186.83,0.00027671,2]
[420930495,1776736288450,-500.0,0.00027671,2]
[420930496,1776736288460,-500.0,0.00027671,2]
[420930497,1776736288469,-500.0,0.00027671,2]
[420930498,1776736288479,-865.85,0.00027671,2]
[420930499,1776736288488,-500.0,0.00027671,2]
[420930500,1776736288497,-327.68720539,0.00027671,2]
[420930501,1776736288506,-500.0,0.00027671,2]
[420930502,1776736288516,-500.0,0.00027671,2]
[420930503,1776736288525,-500.0,0.00027671,2]
[420930504,1776736288534,-500.0,0.00027671,2]
[420930505,1776736288545,-500.0,0.00027671,2]
[420930506,1776736288554,-500.0,0.00027671,2]
[420930507,1776736288563,-500.0,0.00027671,2]
[420930508,1776736288573,-500.0,0.00027671,2]
[420930509,1776736288582,-1139.25,0.00027671,2]
[420930510,1776736288591,-811.15,0.00027671,2]
[420930511,1776736288601,-1690.59,0.00027671,2]
[420930512,1776736288610,-500.0,0.00027671,2]
[420930513,1776736288725,-500.0,0.00027671,2]
[420930514,1776736288772,-500.0,0.00027671,2]
[420930515,1776736288782,-500.0,0.00027671,2]
[420930516,1776736288792,-500.0,0.00027671,2]
[420930517,1776736288801,-634.1,0.00027671,2]
[420930518,1776736288810,-500.0,0.00027671,2]
[420930519,1776736288820,-2822.63,0.00027671,2]
[420930520,1776736288829,-1304.97,0.00027671,2]
[420930521,1776736288838,-2161.24,0.00027671,2]
[420930522,1776736288847,-2320.97,0.00027671,2]
[420930523,1776736288857,-500.0,0.00027671,2]
[420930524,1776736288867,-500.0,0.00027671,2]
[420930525,1776736288876,-500.0,0.00027671,2]
[420930526,1776736288885,-500.0,0.00027671,2]
[420930527,1776736288894,-1752.89,0.00027671,2]
[420930528,1776736288904,-500.0,0.00027671,2]
[420930529,1776736288913,-595.8,0.00027671,2]
[420930530,1776736288922,-500.0,0.00027671,2]
[420930531,1776736288932,-2087.54,0.00027671,2]
[420930532,1776736288941,-1523.55,0.00027671,2]
[420930533,1776736288950,-500.0,0.00027671,2]
[420930534,1776736288959,-526.93,0.00027671,2]
[420930535,1776736288969,-1017.44,0.00027671,2]
[420930536,1776736288978,-500.0,0.00027671,2]
[420930537,1776736288988,-822.59,0.00027671,2]
[420930538,1776736288998,-657.3,0.00027671,2]
[420930539,1776736289007,-1180.84,0.00027671,2]
[420930540,1776736289017,-500.0,0.00027671,2]
[420930541,1776736289026,-500.0,0.00027671,2]
[420930542,1776736289035,-500.0,0.00027671,2]
[420930543,1776736289044,-1744.37,0.00027671,2]
[420930544,1776736289054,-779.05,0.00027671,2]
[420930545,1776736289063,-500.0,0.00027671,2]
[420930546,1776736289073,-500.0,0.00027671,2]
[420930547,1776736289082,-500.0,0.00027671,2]
[420930548,1776736289092,-553.92,0.00027671,2]
[420930549,1776736289102,-500.0,0.00027671,2]
[420930550,1776736289111,-732.7,0.00027671,2]
[420930551,1776736289120,-500.0,0.00027671,2]
[420930552,1776736289129,-500.0,0.00027671,2]
[420930553,1776736289139,-500.0,0.00027671,2]
[420930554,1776736289148,-500.0,0.00027671,2]
[420930555,1776736289158,-500.0,0.00027671,2]
[420930556,1776736289167,-500.0,0.00027671,2]
[420930557,1776736289176,-500.0,0.00027671,2]
[420930558,1776736289186,-500.0,0.00027671,2]
[420930559,1776736289195,-500.0,0.00027671,2]
[420930560,1776736289205,-500.0,0.00027671,2]
[420930561,1776736289214,-552.46,0.00027671,2]
[420930562,1776736289223,-500.0,0.00027671,2]
[420930563,1776736289233,-533.84059713,0.00027671,2]
[420930564,1776736289243,-500.0,0.00027671,2]
[420930565,1776736289252,-671.66,0.00027671,2]
[420930566,1776736289262,-500.0,0.00027671,2]
[420930567,1776736289271,-500.0,0.00027671,2]
[420930568,1776736289281,-500.0,0.00027671,2]
[420930569,1776736289290,-500.0,0.00027671,2]
[420930570,1776736289299,-500.0,0.00027671,2]
[420930571,1776736289308,-1362.84,0.00027671,2]
[420930572,1776736289318,-495.42624434,0.00027671,2]
[420930573,1776736289327,-500.0,0.00027671,2]
[420930574,1776736289336,-1526.46,0.00027671,2]
[420930575,1776736289346,-500.0,0.00027671,2]
[420930576,1776736289355,-509.92686551,0.00027671,2]
[420930577,1776736289364,-500.0,0.00027671,2]
[420930578,1776736289373,-500.0,0.00027671,2]
[420930579,1776736289382,-500.0,0.00027671,2]
[420930580,1776736289392,-500.0,0.00027671,2]
[420930581,1776736289401,-500.0,0.00027671,2]
[420930582,1776736289410,-500.0,0.00027671,2]
[420930583,1776736289419,-500.0,0.00027671,2]
[420930584,1776736289428,-500.0,0.00027671,2]
[420930585,1776736289438,-500.0,0.00027671,2]
[420930586,1776736289447,-500.0,0.00027671,2]
[420930587,1776736289456,-500.0,0.00027671,2]
[420930588,1776736289466,-500.0,0.00027671,2]
[420930589,1776736289476,-500.0,0.00027671,2]
[420930590,1776736289485,-500.0,0.00027671,2]
[420930591,1776736289495,-500.0,0.00027671,2]
[420930592,1776736289504,-500.0,0.00027671,2]
[420930593,1776736289514,-500.0,0.00027671,2]
[420930594,1776736289524,-287.30819694,0.00027671,2]
[420930595,1776736289534,-575.01,0.00027671,2]
[420930596,1776736289543,-1316.21,0.00027671,2]
[420930597,1776736289553,-1448.17,0.00027671,2]
[420930598,1776736289562,-542.21,0.00027671,2]
[420930599,1776736289572,-500.0,0.00027671,2]
[420930600,1776736289582,-347.890598,0.00027671,2]
[420930601,1776736289592,-500.0,0.00027671,2]
[420930602,1776736289601,-1037.04,0.00027671,2]
[420930603,1776736289611,-5489.355873,0.00027671,2]
[420930604,1776736289620,-257.867123,0.00027671,2]
[420930605,1776736289630,-389.913306,0.00027671,2]
[420930606,1776736289639,-5000.0,0.00027671,2]
[420930607,1776736289649,-697.29622,0.00027671,2]
[420930608,1776736289659,-2091.888659,0.00027671,2]
[420930609,1776736289668,-500.0,0.00027671,2]
[420930610,1776736289678,-500.0,0.00027671,2]
[420930611,1776736289688,-356.20717701,0.00027671,2]
[420930612,1776736289698,-158.38946835,0.00027671,2]
[420930613,1776736289708,-156.24624116,0.00027671,2]
[420930614,1776736289717,-500.0,0.00027671,2]
[420930615,1776736289727,-500.0,0.00027671,2]
[420930616,1776736289737,-500.0,0.00027671,2]
[420930617,1776736289747,-500.0,0.00027671,2]
[420930618,1776736289756,-328.58027653,0.00027671,2]
[420930619,1776736289766,-188.40134575,0.00027671,2]
[420930620,1776736289776,-170.347501,0.00027671,2]
[420930621,1776736289786,-502.48295983,0.00027671,2]
[420930622,1776736289796,-576.64521013,0.00027671,2]